fUSD/lending_fUSD_20240209
["ID","MTS","AMOUNT","RATE_DAILY","PERIOD"]
[313618404,1707483050535,-500.0,0.00041095,31]
[313618405,1707483050545,-500.0,0.00041095,31]
[313618406,1707483050555,-509.51389626,0.00041095,31]
[313618407,1707483050565,-500.0,0.00041095,31]
[313618408,1707483050575,-500.0,0.00041095,31]
[313618409,1707483050584,-500.0,0.00041095,31]
[313618410,1707483050594,-500.0,0.00041095,31]
[313618411,1707483050604,-500.0,0.00041095,31]
[313618412,1707483050613,-509.75210233,0.00041095,31]
[313618413,1707483050624,-500.0,0.00041095,31]
[313618414,1707483050634,-500.0,0.00041095,31]
[313618415,1707483050645,-500.0,0.00041095,31]
[313618416,1707483050654,-500.0,0.00041095,31]
[313618417,1707483050664,-500.0,0.00041095,30]
[313618418,1707483050673,-511.77869147,0.00041095,31]
[313618419,1707483050684,-500.0,0.00041095,31]
[313618420,1707483050693,-277.89672637,0.00041095,31]
[313618421,1707483050703,-500.0,0.00041095,31]
[313618422,1707483050716,-500.0,0.00041095,31]
[313618423,1707483050725,-500.0,0.00041095,31]
[313618424,1707483050736,-500.0,0.00041095,31]
[313618425,1707483050746,-512.24488089,0.00041095,31]
[313618426,1707483050755,-500.0,0.00041095,31]
[313618427,1707483050766,-500.0,0.00041095,31]
[313618428,1707483050776,-500.0,0.00041095,31]
[313618429,1707483050786,-500.0,0.00041095,31]
[313618430,1707483050796,-500.0,0.00041095,31]
[313618431,1707483050805,-500.0,0.00041095,31]
[313618432,1707483050815,-500.0,0.00041095,31]
[313618433,1707483050825,-536.58921118,0.00041095,31]
[313618434,1707483050835,-500.0,0.00041095,31]
[313618435,1707483050845,-826.88,0.00041095,31]
[313618436,1707483050854,-500.0,0.00041095,31]
[313618437,1707483050864,-500.0,0.00041095,31]
[313618438,1707483050873,-506.84442171,0.00041095,31]
[313618439,1707483050883,-500.0,0.00041095,31]
[313618440,1707483050892,-500.0,0.00041095,31]
[313618441,1707483050902,-801.3,0.00041095,31]
[313618442,1707483050911,-580.64,0.00041095,31]
[313618443,1707483050920,-500.0,0.00041095,31]
[313618444,1707483050930,-500.0,0.00041095,31]
[313618445,1707483050939,-500.0,0.00041095,31]
[313618446,1707483050949,-505.14223791,0.00041095,31]
[313618447,1707483050958,-512.31,0.00041095,31]
[313618448,1707483050968,-500.0,0.00041095,31]
[313618449,1707483050978,-500.0,0.00041095,31]
[313618450,1707483050987,-500.0,0.00041095,31]
[313618451,1707483051000,-519.44815115,0.00041095,31]
[313618452,1707483051009,-500.0,0.00041095,31]
[313618453,1707483051019,-500.0,0.00041095,31]
[313618454,1707483051027,-500.0,0.00041095,31]
[313618455,1707483051039,-500.0,0.00041095,31]
[313618456,1707483051048,-500.0,0.00041095,31]
[313618457,1707483051057,-500.0,0.00041095,31]
[313618458,1707483051066,-500.0,0.00041095,31]
[313618459,1707483051076,-500.0,0.00041095,31]
[313618460,1707483051085,-500.0,0.00041095,31]
[313618461,1707483051094,-500.0,0.00041095,31]
[313618462,1707483051103,-500.0,0.00041095,31]
[313618463,1707483051113,-500.0,0.00041095,31]
[313618464,1707483051122,-500.0,0.00041095,31]
[313618465,1707483051131,-500.0,0.00041095,31]
[313618466,1707483051140,-595.91081694,0.00041095,31]
[313618467,1707483051149,-500.0,0.00041095,31]
[313618468,1707483051159,-3636.22170819,0.00041095,30]
[313618469,1707483051168,-500.0,0.00041095,31]
[313618470,1707483051178,-500.0,0.00041095,31]
[313618471,1707483051187,-500.0,0.00041095,31]
[313618472,1707483051197,-505.04951351,0.00041095,31]
[313618473,1707483051208,-506.83273143,0.00041095,31]
[313618474,1707483051220,-705.02,0.00041095,31]
[313618475,1707483051228,-500.0,0.00041095,31]
[313618476,1707483051237,-500.0,0.00041095,31]
[313618477,1707483051247,-527.28504675,0.00041095,31]
[313618478,1707483051257,-500.0,0.00041095,31]
[313618479,1707483051267,-500.0,0.00041095,31]
[313618480,1707483051276,-500.0,0.00041095,31]
[313618481,1707483051286,-500.0,0.00041095,14]
[313618482,1707483051295,-500.0,0.00041095,31]
[313618483,1707483051305,-500.0,0.00041095,31]
[313618484,1707483051315,-500.0,0.00041095,31]
[313618485,1707483051325,-500.0,0.00041095,31]
[313618486,1707483051334,-507.73926166,0.00041095,31]
[313618487,1707483051344,-500.0,0.00041095,31]
[313618488,1707483051353,-500.0,0.00041095,31]
[313618489,1707483051363,-500.0,0.00041095,31]
[313618490,1707483051372,-591.1,0.00041095,31]
[313618491,1707483051383,-500.0,0.00041095,31]
[313618492,1707483051393,-1901.56,0.00041095,31]
[313618493,1707483051402,-500.0,0.00041095,31]
[313618494,1707483051412,-500.0,0.00041095,31]
[313618495,1707483051422,-500.0,0.00041095,31]
[313618496,1707483051432,-500.0,0.00041095,31]
[313618497,1707483051442,-500.0,0.00041095,31]
[313618498,1707483051452,-654.2,0.00041095,31]
[313618499,1707483051463,-500.0,0.00041095,31]
[313618500,1707483051472,-500.0,0.00041095,31]
[313618501,1707483051482,-500.0,0.00041095,31]
[313618502,1707483051493,-823.52,0.00041095,31]
[313618503,1707483051502,-500.0,0.00041095,31]
[313618504,1707483051511,-500.0,0.00041095,31]
[313618505,1707483051521,-500.0,0.00041095,31]
[313618506,1707483051530,-500.0,0.00041095,31]
[313618507,1707483051540,-4738.3,0.00041095,31]
[313618508,1707483051549,-500.0,0.00041095,31]
[313618509,1707483051559,-645.69,0.00041095,31]
[313618510,1707483051569,-500.0,0.00041095,31]
[313618511,1707483051578,-2798.16,0.00041095,31]
[313618512,1707483051588,-2178.28,0.00041095,31]
[313618513,1707483051597,-500.0,0.00041095,31]
[313618514,1707483051607,-500.0,0.00041095,31]
[313618515,1707483051617,-500.0,0.00041095,31]
[313618516,1707483051626,-545.6212044,0.00041095,31]
[313618517,1707483051797,-563.57,0.00041095,31]
[313618518,1707483051817,-1770.54,0.00041095,31]
[313618519,1707483051827,-500.0,0.00041095,31]
[313618520,1707483051837,-500.0,0.00041095,31]
[313618521,1707483051846,-500.0,0.00041095,31]
[313618522,1707483051856,-328.64081927,0.00041095,31]
[313618523,1707483051866,-1033.31,0.00041095,31]
[313618524,1707483051875,-500.0,0.00041095,31]
[313618525,1707483051884,-500.0,0.00041095,31]
[313618526,1707483051894,-232.36058798,0.00041095,31]
[313618527,1707483051908,-2229.5,0.00041095,31]
[313618528,1707483051917,-500.0,0.00041095,31]
[313618529,1707483051926,-5762.07,0.00041095,31]
[313618530,1707483051936,-500.0,0.00041095,31]
[313618531,1707483051946,-500.0,0.00041095,31]
[313618532,1707483051957,-698.39,0.00041095,31]
[313618533,1707483051968,-500.0,0.00041095,31]
[313618534,1707483051978,-500.0,0.00041095,31]
[313618535,1707483051988,-500.0,0.00041095,31]
[313618536,1707483051999,-517.58474296,0.00041095,31]
[313618537,1707483052009,-500.0,0.00041095,31]
[313618538,1707483052019,-497.63144264,0.00041095,31]
[313618539,1707483052028,-541.4,0.00041095,31]
[313618540,1707483052040,-500.0,0.00041095,31]
[313618541,1707483052049,-504.06170059,0.00041095,31]
[313618542,1707483052058,-500.0,0.00041095,31]
[313618543,1707483052067,-500.0,0.00041095,31]
[313618544,1707483052077,-3483.47,0.00041095,31]
[313618545,1707483052086,-559.59,0.00041095,31]
[313618546,1707483052096,-683.47,0.00041095,31]
[313618547,1707483052104,-10572.83,0.00041095,31]
[313618548,1707483052114,-1043.59,0.00041095,31]
[313618549,1707483052124,-500.0,0.00041095,31]
[313618550,1707483052133,-500.0,0.00041095,31]
[313618551,1707483052142,-500.0,0.00041095,31]
[313618552,1707483052151,-500.0,0.00041095,31]
[313618553,1707483052160,-500.0,0.00041095,31]
[313618554,1707483052169,-500.0,0.00041095,31]
[313618555,1707483052179,-500.0,0.00041095,31]
[313618556,1707483052188,-500.0,0.00041095,31]
[313618557,1707483052198,-500.0,0.00041095,31]
[313618558,1707483052207,-5067.4,0.00041095,31]
[313618559,1707483052218,-500.0,0.00041095,31]
[313618560,1707483052226,-6174.41,0.00041095,31]
[313618561,1707483052235,-19349.02,0.00041095,31]
[313618562,1707483052244,-533.21,0.00041095,31]
[313618563,1707483052253,-519.71,0.00041095,31]
[313618564,1707483052262,-500.0,0.00041095,31]
[313618565,1707483052271,-500.0,0.00041095,31]
[313618566,1707483052281,-568.67973351,0.00041095,31]
[313618567,1707483052290,-500.0,0.00041095,10]
[313618568,1707483052299,-500.0,0.00041095,31]
[313618569,1707483052308,-1000.0,0.00041095,120]
[313618570,1707483052318,-6661.4,0.00041095,31]
[313618571,1707483052327,-500.0,0.00041095,31]
[313618572,1707483052337,-500.0,0.00041095,31]
[313618573,1707483052346,-1608.67,0.00041095,31]
[313618574,1707483052356,-500.0,0.00041095,31]
[313618575,1707483052365,-506.46,0.00041095,31]
[313618576,1707483052374,-503.20952961,0.00041095,31]
[313618577,1707483052383,-500.0,0.00041095,31]
[313618578,1707483052393,-718.51,0.00041095,31]
[313618579,1707483052402,-500.0,0.00041095,31]
[313618580,1707483052412,-539.7,0.00041095,31]
[313618581,1707483052422,-500.0,0.00041095,31]
[313618582,1707483052431,-507.61913934,0.00041095,31]
[313618583,1707483052440,-500.0,0.00041095,31]
[313618584,1707483052449,-500.0,0.00041095,31]
[313618585,1707483052459,-564.90781691,0.00041095,31]
[313618586,1707483052468,-3586.65,0.00041095,31]
[313618587,1707483052478,-500.0,0.00041095,31]
[313618588,1707483052487,-509.36638809,0.00041095,31]
[313618589,1707483052497,-500.0,0.00041095,31]
[313618590,1707483052506,-500.0,0.00041095,31]
[313618591,1707483052516,-572.76,0.00041095,31]
[313618592,1707483052525,-500.0,0.00041095,31]
[313618593,1707483052534,-500.0,0.00041095,31]
[313618594,1707483052544,-500.0,0.00041095,31]
[313618595,1707483052553,-500.0,0.00041095,31]
[313618596,1707483052562,-1390.1,0.00041095,31]
[313618597,1707483052571,-500.0,0.00041095,31]
[313618598,1707483052581,-550.65,0.00041095,31]
[313618599,1707483052590,-500.0,0.00041095,31]
[313618600,1707483052599,-298.73915565,0.00041095,31]
[313618601,1707483052609,-500.0,0.00041095,31]
[313618602,1707483052618,-500.0,0.00041095,31]
[313618603,1707483052627,-500.0,0.00041095,31]
[313618604,1707483052637,-29656.64,0.00041095,31]
[313618605,1707483052646,-500.0,0.00041095,31]
[313618606,1707483052655,-500.0,0.00041095,31]
[313618607,1707483052664,-500.0,0.00041095,31]
[313618608,1707483052673,-500.0,0.00041095,31]
[313618609,1707483052682,-585.57831306,0.00041095,31]
[313618610,1707483052691,-500.0,0.00041095,31]
[313618611,1707483052700,-500.0,0.00041095,31]
[313618612,1707483052709,-500.0,0.00041095,31]
[313618613,1707483052719,-500.0,0.00041095,2]
[313618614,1707483052728,-1176.0,0.00041095,31]
[313618615,1707483052737,-500.0,0.00041095,31]
[313618616,1707483052746,-500.0,0.00041095,31]
[313618617,1707483052755,-526.79,0.00041095,31]
[313618618,1707483052765,-500.0,0.00041095,31]
[313618619,1707483052774,-6574.09,0.00041095,31]
[313618620,1707483052783,-505.37,0.00041095,31]
[313618621,1707483052793,-500.0,0.00041095,31]
[313618622,1707483052802,-500.0,0.00041095,31]
[313618623,1707483052811,-500.0,0.00041095,7]
[313618624,1707483052820,-500.0,0.00041095,31]
[313618625,1707483052829,-601.66,0.00041095,31]
[313618626,1707483052839,-500.0,0.00041095,31]
[313618627,1707483052847,-500.0,0.00041095,31]
[313618628,1707483052857,-2521.89,0.00041095,31]
[313618629,1707483052866,-566.9841507,0.00041095,31]
[313618630,1707483052875,-1473.45,0.00041095,31]
[313618631,1707483052885,-539.01,0.00041095,31]
[313618632,1707483052894,-483.41964715,0.00041095,31]
[313618633,1707483052903,-500.0,0.00041095,31]
[313618634,1707483052911,-4096.1,0.00041095,31]
[313618635,1707483052920,-500.0,0.00041095,31]
[313618636,1707483052930,-947.8,0.00041095,31]
[313618637,1707483052939,-500.0,0.00041095,31]
[313618638,1707483052947,-500.0,0.00041095,31]
[313618639,1707483052956,-530.3195942,0.00041095,31]
[313618640,1707483052968,-500.0,0.00041095,31]
[313618641,1707483052976,-500.0,0.00041095,31]
[313618642,1707483052985,-2592.8,0.00041095,31]
[313618643,1707483052996,-500.0,0.00041095,31]
[313618644,1707483053005,-500.0,0.00041095,31]
[313618645,1707483053015,-500.0,0.00041095,31]
[313618646,1707483053024,-420.54644904,0.00041095,31]
[313618647,1707483053034,-500.0,0.00041095,31]
[313618648,1707483053045,-516.06,0.00041095,31]
[313618649,1707483053054,-500.0,0.00041095,31]
[313618650,1707483053063,-500.0,0.00041095,31]
[313618651,1707483053073,-615.44,0.00041095,31]
[313618652,1707483053083,-500.0,0.00041095,31]
[313618653,1707483053092,-500.0,0.00041095,31]
[313618654,1707483053101,-1267.9,0.00041095,31]
[313618655,1707483053111,-500.0,0.00041095,31]
[313618656,1707483053121,-1090.47,0.00041095,31]
[313618657,1707483053131,-500.0,0.00041095,31]
[313618658,1707483053140,-582.73201217,0.00041095,31]
[313618659,1707483053149,-500.0,0.00041095,31]
[313618660,1707483053158,-500.0,0.00041095,31]
[313618661,1707483053167,-1341.57,0.00041095,31]
[313618662,1707483053176,-2273.47,0.00041095,31]
[313618663,1707483053185,-614.51270662,0.00041095,31]
[313618664,1707483053194,-500.0,0.00041095,31]
[313618665,1707483053203,-500.0,0.00041095,31]
[313618666,1707483053213,-280.94760061,0.00041095,31]
[313618667,1707483053222,-500.0,0.00041095,31]
[313618668,1707483053232,-504.45,0.00041095,31]
[313618669,1707483053241,-568.56,0.00041095,31]
[313618670,1707483053250,-631.87,0.00041095,31]
[313618671,1707483053259,-500.0,0.00041095,31]
[313618672,1707483053268,-500.0,0.00041095,31]
[313618673,1707483053277,-2804.36,0.00041095,31]
[313618674,1707483053286,-500.0,0.00041095,31]
[313618675,1707483053295,-538.94765982,0.00041095,31]
[313618676,1707483053304,-1009.62354333,0.00041095,31]
[313618677,1707483053313,-500.0,0.00041095,31]
[313618678,1707483053322,-500.0,0.00041095,31]
[313618679,1707483053331,-1128.65,0.00041095,31]
[313618680,1707483053341,-280.31702047,0.00041095,31]
[313618681,1707483053350,-635.59,0.00041095,31]
[313618682,1707483053359,-500.0,0.00041095,31]
[313618683,1707483053368,-1629.48,0.00041095,31]
[313618684,1707483053378,-500.0,0.00041095,31]
[313618685,1707483053387,-500.0,0.00041095,31]
[313618686,1707483053397,-500.0,0.00041095,31]
[313618687,1707483053406,-500.0,0.00041095,31]
[313618688,1707483053415,-3057.52,0.00041095,31]
[313618689,1707483053425,-500.0,0.00041095,31]
[313618690,1707483053434,-350.0,0.00041095,31]
[313618691,1707483053443,-500.0,0.00041095,31]
[313618692,1707483053453,-10182.81,0.00041095,31]
[313618693,1707483053462,-500.0,0.00041095,31]
[313618694,1707483053472,-635.68,0.00041095,31]
[313618695,1707483053481,-500.0,0.00041095,31]
[313618696,1707483053491,-500.0,0.00041095,31]
[313618697,1707483053500,-565.44,0.00041095,31]
[313618698,1707483053509,-500.0,0.00041095,31]
[313618699,1707483053518,-500.0,0.00041095,31]
[313618700,1707483053528,-500.0,0.00041095,31]
[313618701,1707483053537,-959.36,0.00041095,31]
[313618702,1707483053547,-500.0,0.00041095,31]
[313618703,1707483053556,-500.0,0.00041095,31]
[313618704,1707483053566,-500.0,0.00041095,31]
[313618705,1707483053575,-500.0,0.00041095,31]
[313618706,1707483053585,-2012.86,0.00041095,31]
[313618707,1707483053594,-500.0,0.00041095,31]
[313618708,1707483053603,-500.0,0.00041095,31]
[313618709,1707483053613,-500.0,0.00041095,31]
[313618710,1707483053622,-500.0,0.00041095,31]
[313618711,1707483053631,-552.49,0.00041095,31]
[313618712,1707483053641,-776.48,0.00041095,31]
[313618713,1707483053650,-500.0,0.00041095,31]
[313618714,1707483053659,-500.0,0.00041095,31]
[313618715,1707483053669,-500.0,0.00041095,31]
[313618716,1707483053678,-500.0,0.00041095,31]
[313618717,1707483053687,-3115.29,0.00041095,31]
[313618718,1707483053696,-12287.04,0.00041095,31]
[313618719,1707483053706,-916.0,0.00041095,31]
[313618720,1707483053715,-500.0,0.00041095,31]
[313618721,1707483053725,-500.0,0.00041095,31]
[313618722,1707483053734,-500.0,0.00041095,31]
[313618723,1707483053743,-500.0,0.00041095,31]
[313618724,1707483053752,-500.0,0.00041095,31]
[313618725,1707483053761,-500.0,0.00041095,31]
[313618726,1707483053770,-1314.52,0.00041095,31]
[313618727,1707483053780,-514.20539708,0.00041095,31]
[313618728,1707483053789,-500.0,0.00041095,31]
[313618729,1707483053798,-2077.84,0.00041095,31]
[313618730,1707483053808,-500.0,0.00041095,31]
[313618731,1707483053817,-607.17,0.00041095,31]
[313618732,1707483053826,-500.0,0.00041095,31]
[313618733,1707483053836,-500.0,0.00041095,31]
[313618734,1707483053845,-500.0,0.00041095,31]
[313618735,1707483053854,-500.0,0.00041095,31]
[313618736,1707483053863,-500.0,0.00041095,31]
[313618737,1707483053872,-808.15,0.00041095,31]
[313618738,1707483053881,-512.46725354,0.00041095,31]
[313618739,1707483053890,-500.0,0.00041095,31]
[313618740,1707483053899,-500.0,0.00041095,31]
[313618741,1707483053908,-500.0,0.00041095,31]
[313618742,1707483053918,-1634.94,0.00041095,31]
[313618743,1707483053926,-500.0,0.00041095,31]
[313618744,1707483053934,-500.0,0.00041095,31]
[313618745,1707483053943,-987.1,0.00041095,31]
[313618746,1707483053953,-536.74006204,0.00041095,31]
[313618747,1707483053963,-500.0,0.00041095,31]
[313618748,1707483053972,-500.0,0.00041095,31]
[313618749,1707483053982,-2610.96,0.00041095,31]
[313618750,1707483053992,-500.0,0.00041095,31]
[313618751,1707483054004,-500.0,0.00041095,31]
[313618752,1707483054013,-500.0,0.00041095,31]
[313618753,1707483054023,-518.42,0.00041095,31]
[313618754,1707483054032,-605.21125061,0.00041095,31]
[313618755,1707483054042,-3129.95,0.00041095,31]
[313618756,1707483054051,-500.0,0.00041095,31]
[313618757,1707483054060,-500.0,0.00041095,31]
[313618758,1707483054069,-1968.03,0.00041095,31]
[313618759,1707483054078,-500.0,0.00041095,31]
[313618760,1707483054087,-500.0,0.00041095,31]
[313618761,1707483054098,-698.48,0.00041095,31]
[313618762,1707483054107,-500.0,0.00041095,31]
[313618763,1707483054116,-500.0,0.00041095,31]
[313618764,1707483054126,-500.0,0.00041095,31]
[313618765,1707483054135,-500.0,0.00041095,31]
[313618766,1707483054199,-741.23,0.00041095,31]
[313618767,1707483054208,-500.0,0.00041095,31]
[313618768,1707483054220,-1111.32,0.00041095,31]
[313618769,1707483054229,-500.0,0.00041095,31]
[313618770,1707483054238,-500.0,0.00041095,31]
[313618771,1707483054247,-500.0,0.00041095,31]
[313618772,1707483054257,-500.0,0.00041095,31]
[313618773,1707483054266,-500.0,0.00041095,31]
[313618774,1707483054275,-500.0,0.00041095,31]
[313618775,1707483054284,-1246.8,0.00041095,31]
[313618776,1707483054293,-518.75716612,0.00041095,31]
[313618777,1707483054302,-3513.3,0.00041095,31]
[313618778,1707483054311,-500.0,0.00041095,31]
[313618779,1707483054321,-500.0,0.00041095,31]
[313618780,1707483054330,-500.0,0.00041095,31]
[313618781,1707483054340,-500.0,0.00041095,31]
[313618782,1707483054349,-500.6896118,0.00041095,31]
[313618783,1707483054357,-506.58162908,0.00041095,31]
[313618784,1707483054366,-500.0,0.00041095,31]
[313618785,1707483054376,-926.9,0.00041095,31]
[313618786,1707483054386,-500.0,0.00041095,31]
[313618787,1707483054394,-842.81,0.00041095,31]
[313618788,1707483054404,-8148.69,0.00041095,31]
[313618789,1707483054413,-500.0,0.00041095,31]
[313618790,1707483054423,-500.0,0.00041095,31]
[313618791,1707483054432,-500.0,0.00041095,31]
[313618792,1707483054441,-500.0,0.00041095,31]
[313618793,1707483054450,-500.0,0.00041095,31]
[313618794,1707483054460,-500.0,0.00041095,31]
[313618795,1707483054471,-500.0,0.00041095,31]
[313618796,1707483054480,-1056.01,0.00041095,31]
[313618797,1707483054491,-605.03,0.00041095,31]
[313618798,1707483054501,-7924.39409461,0.00041095,31]
[313618799,1707483054894,-1988.07590539,0.00041095,31]
[313618800,1707483054903,-514.17113158,0.00041095,31]
[313618801,1707483054912,-1110.66,0.00041095,31]
[313618802,1707483054921,-500.0,0.00041095,31]
[313618803,1707483054931,-500.0,0.00041095,31]
[313618804,1707483054940,-500.0,0.00041095,31]
[313618805,1707483054949,-500.0,0.00041095,31]
[313618806,1707483054958,-3741.72,0.00041095,31]
[313618807,1707483054967,-3270.77,0.00041095,31]
[313618808,1707483054975,-627.07,0.00041095,31]
[313618809,1707483054984,-500.0,0.00041095,31]
[313618810,1707483055004,-500.0,0.00041095,31]
[313618811,1707483055016,-500.0,0.00041095,31]
[313618812,1707483055025,-500.0,0.00041095,31]
[313618813,1707483055034,-500.0,0.00041095,31]
[313618814,1707483055045,-507.96736025,0.00041095,5]
[313618815,1707483055054,-586.93,0.00041095,31]
[313618816,1707483055063,-963.13,0.00041095,31]
[313618817,1707483055073,-500.0,0.00041095,31]
[313618818,1707483055082,-500.0,0.00041095,31]
[313618819,1707483055092,-500.0,0.00041095,31]
[313618820,1707483055102,-1344.45,0.00041095,31]
[313618821,1707483055111,-500.0,0.00041095,31]
[313618822,1707483055121,-500.0,0.00041095,31]
[313618823,1707483055130,-500.0,0.00041095,31]
[313618824,1707483055139,-1186.8,0.00041095,31]
[313618825,1707483055149,-500.0,0.00041095,31]
[313618826,1707483055159,-526.42337113,0.00041095,31]
[313618827,1707483055168,-2236.53,0.00041095,31]
[313618828,1707483055179,-500.0,0.00041095,31]
[313618829,1707483055188,-151.18619292,0.00041095,31]
[313618830,1707483055197,-2256.51,0.00041095,31]
[313618831,1707483055207,-500.0,0.00041095,31]
[313618832,1707483055217,-500.0,0.00041095,31]
[313618833,1707483055225,-1232.7,0.00041095,31]
[313618834,1707483055235,-507.07453336,0.00041095,31]
[313618835,1707483055243,-500.0,0.00041095,31]
[313618836,1707483055252,-500.0,0.00041095,31]
[313618837,1707483055262,-500.0,0.00041095,31]
[313618838,1707483055271,-500.0,0.00041095,31]
[313618839,1707483055279,-68.70685074,0.00041095,31]
[313618840,1707483055307,-8894.03345698,0.00041095,31]
[313618841,1707483056093,-500.0,0.00034794,2]
[313618842,1707483056102,-284.50318454,0.00037963,4]
[313618843,1707483056118,-482.41713867,0.00037963,4]
[313618844,1707483056127,-1906.17969228,0.00041095,31]
[313618845,1707483056137,-5128.42327072,0.00041095,31]
[313618846,1707483056149,-114.39672928,0.00041095,31]
[313618847,1707483056158,-500.0,0.00041095,31]
[313618848,1707483056168,-500.0,0.00041095,31]
[313618849,1707483056178,-203.8763155,0.00041095,31]
[313618850,1707483056187,-500.0,0.00041095,31]
[313618851,1707483056196,-3181.72695522,0.00041095,31]
[313618852,1707483056209,-229.67304478,0.00041095,31]
[313618853,1707483056221,-456.32695522,0.00041095,31]
[313618854,1707483056287,-49.64195623,0.00041095,31]
[313618855,1707483056297,-356.91352885,0.00041095,31]
[313618856,1707483056309,-797.10647115,0.00041095,31]
[313618857,1707483056318,-500.0,0.00041095,31]
[313618858,1707483056327,-11924.50757517,0.00041095,31]
[313618859,1707483056348,-2347.46759022,0.00041095,31]
[313618860,1707483056360,-611.705515,0.00041095,31]
[313618861,1707483056737,-32.63860969,0.00041095,31]
[313618862,1707483069874,10000.0,0.00023,2]
[313618864,1707483222839,-229.40076689,0.00022884,2]
[313618865,1707483222861,-2205.26890925,0.00022885,2]
[313618866,1707483222884,-155.58197379,0.00022998,2]
[313618867,1707483222906,-1052.66597639,0.00022998,2]
[313618868,1707483222928,-1259.58690738,0.00022998,2]
[313618869,1707483222949,-18234.4954663,0.00022998,2]
[313618870,1707483249011,10527.05,0.0002,2]
[313618871,1707483252020,3062.42721538,0.00021848,2]
[313618872,1707483254595,2486.84367964,0.00022308,2]
[313618873,1707483272606,2472.20753352,0.00022308,2]
[313618874,1707483319457,19052.77972888,0.00022308,2]
[313618875,1707483337452,2373.25452828,0.00022308,2]
[313618888,1707483722869,-155.0,0.00022722,2]
[313618889,1707483722892,-1367.46691039,0.00022767,2]
[313618890,1707483722914,-301.93494721,0.00022768,2]
[313618891,1707483722940,-2979.168,0.00022785,2]
[313618892,1707483722962,-300.0,0.00022884,2]
[313618893,1707483722983,-14658.05240851,0.00022885,2]
[313618894,1707483723004,-157.18663598,0.000229,2]
[313618895,1707483723026,-165.10626536,0.000229,2]
[313618896,1707483723052,-7175.57,0.000229,2]
[313618897,1707483723073,-798.55957236,0.000229,2]
[313618898,1707483723094,-8310.16228463,0.00022998,2]
[313618899,1707483723115,-630.8527813,0.00022998,2]
[313618900,1707483723135,-155.0,0.00022998,2]
[313618901,1707483723156,-206.62735527,0.00022998,2]
[313618902,1707483723182,-168.82866592,0.00022998,2]
[313618903,1707483723202,-303.19097041,0.00022998,2]
[313618904,1707483723222,-286.3397866,0.00022999,2]
[313618905,1707483723242,-245.858254,0.00022999,2]
[313618906,1707483723265,-226.11786442,0.00022999,2]
[313618907,1707483723288,-447.21187346,0.00022999,2]
[313618908,1707483723308,-200.0,0.00022999,2]
[313618909,1707483723329,-362.29642557,0.00022999,2]
[313618910,1707483723358,-500.0,0.00022999,2]
[313618911,1707483723379,-3580.97023092,0.00022999,2]
[313618912,1707483723399,-500.42159959,0.00022999,2]
[313618913,1707483723420,-500.0,0.00022999,2]
[313618914,1707483723444,-200.0,0.00022999,2]
[313618915,1707483723466,-500.0,0.00022999,2]
[313618916,1707483723486,-413.21562903,0.00022999,2]